bitfinex/quotes_SOLUSD_20251206
["timestamp","ask_amount","ask_price","bid_price","bid_amount"]
[1765050020080,0.72,132.13,132.11,10.90915929]
[1765050020381,8.36,132.12,132.11,10.90915929]
[1765050020873,8.36,132.12,132.11,11.60915929]
[1765050021572,0.1,132.15,132.11,30.53278354]
[1765050021879,0.1,132.15,132.14,3.33987006]
[1765050022282,0.1,132.15,132.14,4.03987006]
[1765050025985,0.1,132.15,132.14,11.60760125]
[1765050027358,0.1,132.15,132.14,3.33987006]
[1765050030200,0.1,132.15,132.14,4.03987006]
[1765050031468,0.82,132.15,132.11,3.33987006]
[1765050032075,22.72985566,132.14,132.11,10.90914208]
[1765050032273,31.08985566,132.14,132.11,10.90914208]
[1765050032474,0.72,132.13,132.11,10.90914208]
[1765050032677,8.36,132.12,132.11,10.90914208]
[1765050033787,8.36,132.12,132.11,11.60914208]
[1765050040003,0.82,132.15,132.11,11.60914208]
[1765050040004,8.36,132.13,132.11,11.60914208]
[1765050040168,8.36,132.13,132.12,10.90874683]
[1765050040691,8.36,132.13,132.12,11.60874683]
[1765050044380,8.36,132.13,132.12,10.90874683]
[1765050044581,0.72,132.14,132.12,10.90874683]
[1765050044789,8.36,132.13,132.12,10.90874683]
[1765050045471,8.36,132.13,132.12,11.60874683]
[1765050046168,8.36,132.13,132.12,10.90874683]
[1765050050384,8.36,132.13,132.12,12.78230211]
[1765050052600,8.36,132.13,132.12,13.47230211]
[1765050054990,0.1,132.15,132.12,32.39449405]
[1765050055308,0.1,132.15,132.14,5.21342534]
[1765050055502,8.46,132.15,132.14,5.21342534]
[1765050055704,8.46,132.15,132.14,5.90342534]
[1765050055905,8.46,132.15,132.14,13.47115653]
[1765050056109,8.46,132.15,132.14,12.78115653]
[1765050059616,9.17,132.15,132.14,12.78115653]
[1765050060111,8.46,132.15,132.14,12.78115653]
[1765050060414,8.46,132.15,132.14,13.47115653]
[1765050060712,8.46,132.15,132.14,12.78115653]
[1765050065723,8.46,132.15,132.14,13.47115653]
[1765050065900,0.1,132.15,132.14,22.28110145]
[1765050066101,0.1,132.15,132.14,13.47115653]
[1765050068626,0.1,132.15,132.14,8.25773119]
[1765050068809,0.1,132.15,132.14,13.47115653]
[1765050069724,0.1,132.15,132.14,22.28110145]
[1765050070124,0.1,132.15,132.14,30.64110145]
[1765050072525,0.1,132.19,132.17,5.21342534]
[1765050072823,0.1,132.19,132.14,52.70700409]
[1765050072824,0.1,132.19,132.18,5.21342534]
[1765050073028,0.1,132.19,132.18,12.7788664]
[1765050073232,0.1,132.19,132.18,13.4688664]
[1765050083044,0.1,132.19,132.18,22.27881132]
[1765050083345,0.1,132.19,132.18,30.73881132]
[1765050086346,0.1,132.19,132.18,22.27881132]
[1765050092450,0.1,132.2,132.19,8.80994492]
[1765050092755,1e-08,132.2,132.19,14.71337026]
[1765050092942,1e-08,132.2,132.19,22.278239]
[1765050094542,0.1,132.23,132.19,79.01475461]
[1765050094849,0.1,132.23,132.22,5.21342534]
[1765050095036,0.1,132.23,132.22,14.02337026]
[1765050095356,0.1,132.23,132.22,19.9267956]
[1765050095753,0.1,132.23,132.22,27.48994792]
[1765050099540,0.1,132.23,132.22,22.27652258]
[1765050106865,0.1,132.23,132.22,12.77657766]
[1765050107064,0.81,132.23,132.22,12.77657766]
[1765050107451,0.1,132.23,132.22,12.77657766]
[1765050108774,0.1,132.23,132.22,13.46657766]
[1765050108956,0.1,132.23,132.22,12.77657766]
[1765050110066,0.1,132.23,132.22,17.990003]
[1765050110468,0.1,132.23,132.22,24.21323807]
[1765050111754,0.1,132.23,132.22,24.88323807]
[1765050121989,0.81,132.23,132.22,10.89316947]
[1765050122359,0.1,132.23,132.22,10.89316947]
[1765050125385,0.81,132.23,132.22,10.89316947]
[1765050125887,0.1,132.23,132.22,10.89316947]
[1765050129364,0.1,132.23,132.22,11.56316947]
[1765050130775,0.1,132.23,132.22,10.89316947]
[1765050131167,0.1,132.23,132.22,11.56316947]
[1765050133994,0.1,132.23,132.22,10.89316947]
[1765050136493,0.81,132.23,132.22,10.89316947]
[1765050141472,0.81,132.23,132.22,3.33001715]
[1765050142386,50.81,132.23,132.22,3.33001715]
[1765050142590,0.81,132.23,132.22,3.33001715]
[1765050144984,9.15,132.23,132.21,3.33001715]
[1765050145397,0.7,132.22,132.21,3.33001715]
[1765050145601,0.7,132.22,132.2,3.33001715]
[1765050145794,16.408864,132.23,132.21,3.33001715]
[1765050145984,25.448864,132.23,132.22,3.33001715]
[1765050146181,24.748864,132.23,132.22,3.33001715]
[1765050146697,25.448864,132.23,132.22,3.33001715]
[1765050149092,25.448864,132.23,132.22,10.89316947]
[1765050149093,8.44,132.23,132.22,10.89316947]
[1765050149407,0.1,132.23,132.22,10.89316947]
[1765050150504,0.1,132.23,132.22,11.57316947]
[1765050154205,0.1,132.23,132.22,14.90318662]
[1765050154609,0.1,132.23,132.22,11.57316947]
[1765050156488,0.1,132.23,132.22,14.90318662]
[1765050156688,0.1,132.23,132.22,11.57316947]
[1765050158518,0.1,132.23,132.22,14.90318662]
[1765050159534,0.1,132.24,132.22,14.90318662]
[1765050159815,0.1,132.27,132.23,17.33008575]
[1765050160003,0.1,132.27,132.26,3.33001715]
[1765050160204,0.8,132.27,132.26,3.33001715]
[1765050161890,0.1,132.27,132.26,3.33001715]
[1765050162309,0.8,132.27,132.26,3.33001715]
[1765050162695,0.1,132.27,132.26,10.89088211]
[1765050163417,0.8,132.27,132.26,10.89088211]
[1765050164018,0.1,132.27,132.26,11.57088211]
[1765050164828,0.1,132.27,132.26,10.89088211]
[1765050168005,0.1,132.27,132.26,11.57088211]
[1765050170223,0.1,132.27,132.26,7.56086496]
[1765050170521,0.82,132.27,132.24,18.90373841]
[1765050170722,0.82,132.27,132.26,3.33001715]
[1765050171032,0.82,132.27,132.23,7.56202268]
[1765050171214,0.82,132.27,132.24,3.33001715]
[1765050171408,22.70920858,132.26,132.24,3.33001715]
[1765050171597,8.34,132.25,132.24,3.33001715]
[1765050171803,9.06,132.25,132.24,3.33001715]
[1765050172424,9.06,132.25,132.24,5.20459623]
[1765050173130,9.06,132.25,132.23,5.20459623]
[1765050173334,0.72,132.24,132.23,5.20459623]
[1765050174318,0.72,132.24,132.22,5.20459623]
[1765050174723,18.12,132.24,132.22,5.20459623]
[1765050175024,0.72,132.23,132.22,5.20459623]
[1765050177716,0.72,132.23,132.21,5.20459623]
[1765050177929,8.34,132.22,132.21,5.20459623]
[1765050178425,9.03,132.22,132.2,5.20459623]
[1765050178630,9.03,132.22,132.19,5.20459623]
[1765050178631,0.69,132.21,132.19,5.20459623]
[1765050180424,8.25411156,132.21,132.17,5.20459623]
[1765050180631,30.97363899,132.21,132.18,5.20459623]
[1765050180835,0.69,132.2,132.18,5.20459623]
[1765050181021,8.34,132.19,132.18,5.20459623]
[1765050181213,8.34,132.19,132.18,12.77003729]
[1765050181428,8.34,132.19,132.18,13.47003729]
[1765050181732,8.34,132.2,132.18,12.77003729]
[1765050182027,0.69,132.21,132.19,5.20459623]
[1765050182327,8.34,132.2,132.19,0.7]
[1765050183426,8.34,132.2,132.19,5.20459623]
[1765050184410,8.34,132.2,132.19,5.90459623]
[1765050184736,9.03,132.2,132.19,5.20459623]
[1765050184912,8.34,132.2,132.19,5.20459623]
[1765050187229,9.03,132.2,132.19,5.20459623]
[1765050188536,16.59442561,132.2,132.18,5.20459623]
[1765050188711,0.69,132.19,132.17,5.20459623]
[1765050189935,8.25488305,132.19,132.16,5.20459623]
[1765050190317,9.03,132.18,132.15,12.77131129]
[1765050190715,0.69,132.17,132.15,12.77131129]
[1765050191112,8.34,132.16,132.15,5.20459623]
[1765050191330,0.69,132.19,132.15,5.20459623]
[1765050191635,8.34,132.18,132.17,5.20459623]
[1765050192332,9.03,132.18,132.15,12.77166255]
[1765050192535,0.69,132.17,132.15,12.77166255]
[1765050192835,0.69,132.17,132.15,5.20459623]
[1765050193223,9.03,132.18,132.16,5.20459623]
[1765050193427,0.69,132.17,132.16,5.20459623]
[1765050195431,8.34,132.18,132.16,5.20459623]
[1765050195635,9.03,132.18,132.16,5.20459623]
[1765050198134,9.03,132.18,132.15,13.47156704]
[1765050198518,8.34,132.17,132.15,13.47156704]
[1765050203536,8.34,132.17,132.15,8.26697081]
[1765050203743,8.34,132.17,132.15,13.47156704]
[1765050207454,8.34,132.17,132.16,5.20459623]
[1765050208429,8.34,132.17,132.11,18.92338843]
[1765050208629,0.66,132.16,132.15,5.20459623]
[1765050208852,0.66,132.16,132.14,5.20459623]
[1765050209030,8.34,132.15,132.14,5.20459623]
[1765050210440,9.0,132.15,132.14,5.20459623]
[1765050210649,9.0,132.15,132.13,5.20459623]
[1765050210848,16.56715853,132.15,132.13,5.20459623]
[1765050211149,15.90715853,132.15,132.14,5.20459623]
[1765050211558,9.0,132.15,132.14,5.20459623]
[1765050212651,16.56715853,132.15,132.11,8.26908791]
[1765050212866,16.56715853,132.15,132.13,5.20459623]
[1765050212867,0.66,132.14,132.13,5.20459623]
[1765050213837,0.66,132.14,132.09,24.13055996]
[1765050213838,8.22789977,132.14,132.09,8.27020286]
[1765050214039,8.34,132.13,132.12,5.20459623]
[1765050214240,9.0,132.13,132.12,5.20459623]
[1765050215548,32.87723981,132.13,132.1,5.20459623]
[1765050215861,0.66,132.12,132.1,5.20459623]
[1765050216057,8.34,132.11,132.1,5.20459623]
[1765050216564,9.0,132.11,132.1,5.20459623]
[1765050216759,8.34,132.11,132.1,5.90459623]
[1765050216958,8.34,132.11,132.1,13.47461894]
[1765050217764,8.34,132.11,132.1,5.90459623]
[1765050219565,8.34,132.11,132.1,13.47461894]
[1765050221872,16.968864,132.13,132.1,13.47461894]
[1765050221873,16.308864,132.13,132.1,13.47461894]
[1765050222070,8.34,132.12,132.11,0.7]
[1765050222249,8.34,132.12,132.11,5.90459623]
[1765050222956,8.34,132.12,132.11,13.47404593]
[1765050226753,24.648864,132.14,132.11,13.47404593]
[1765050226959,24.648864,132.14,132.13,5.20459623]
[1765050233864,25.338864,132.14,132.12,5.20459623]
[1765050234089,0.69,132.13,132.12,5.20459623]
[1765050234460,0.69,132.13,132.08,0.67]
[1765050234660,8.34,132.12,132.1,3.33707543]
[1765050235180,0.69,132.11,132.1,3.33707543]
[1765050236282,8.2594497,132.11,132.09,3.33707543]
[1765050236584,8.34,132.1,132.09,3.33707543]
[1765050236785,8.34,132.1,132.07,3.53707543]
[1765050236786,9.03,132.1,132.07,3.53707543]
[1765050236974,16.308864,132.08,132.07,0.2]
[1765050237182,25.338864,132.08,132.07,0.2]
[1765050238163,32.91003298,132.08,132.07,0.2]
[1765050239179,140.54710841,132.08,132.07,0.2]
[1765050243593,137.21003298,132.08,132.07,0.2]
[1765050244165,128.18003298,132.08,132.07,0.2]
[1765050244368,112.64,132.08,132.07,3.53707543]
[1765050244779,8.34,132.08,132.07,3.53707543]
[1765050245794,8.34,132.09,132.07,11.77869332]
[1765050245989,8.34,132.09,132.08,0.67]
[1765050246189,8.34,132.09,132.08,4.00707543]
[1765050246781,8.34,132.09,132.08,7.34415086]
[1765050247494,8.25761016,132.15,132.08,43.8544686]
[1765050247669,16.308864,132.13,132.09,14.01830172]
[1765050247870,24.648864,132.12,132.09,14.01830172]
[1765050248087,8.34,132.12,132.1,0.67]
[1765050248483,8.34,132.12,132.1,8.23957504]
[1765050248892,8.34,132.12,132.11,4.00707543]
[1765050250999,8.34,132.12,132.11,11.57652513]
[1765050253302,8.34,132.12,132.11,4.00707543]
[1765050259412,9.03,132.12,132.11,3.33707543]
[1765050259613,8.34,132.12,132.11,3.33707543]
[1765050260907,8.34,132.12,132.11,11.61652513]
[1765050267236,8.34,132.12,132.11,10.90652513]
[1765050267441,8.34,132.12,132.11,11.61652513]
[1765050268220,8.34,132.12,132.11,10.90652513]
[1765050268538,8.34,132.12,132.11,3.33707543]
[1765050269141,8.34,132.12,132.1,3.33707543]
[1765050269315,8.34,132.12,132.1,4.04707543]
[1765050269630,8.34,132.12,132.1,3.33707543]
[1765050269825,15.90901929,132.12,132.09,4.04707543]
[1765050270029,0.72,132.11,132.08,10.90806877]
[1765050270225,8.34,132.1,132.08,3.33707543]
[1765050270423,9.06,132.1,132.08,3.33707543]
[1765050271135,9.06,132.1,132.07,11.81874997]
[1765050271936,16.63006538,132.1,132.07,4.24707543]
[1765050272315,16.63006538,132.1,132.08,3.33707543]
[1765050273419,8.34,132.1,132.09,4.04707543]
[1765050273818,8.34,132.11,132.09,4.04707543]
[1765050274014,8.34,132.11,132.1,3.33707543]
[1765050274634,8.34,132.11,132.1,4.04707543]
[1765050278053,9.06,132.11,132.1,3.33707543]
[1765050278354,9.06,132.11,132.09,3.33707543]
[1765050278738,9.06,132.11,132.08,8.28106854]
[1765050278739,16.629537,132.11,132.08,4.04707543]
[1765050279052,0.72,132.1,132.08,3.33707543]
[1765050279355,8.34,132.09,132.07,3.53707543]
[1765050279532,8.34,132.09,132.07,4.24707543]
[1765050279919,9.06,132.09,132.07,0.2]
[1765050280125,0.72,132.08,132.07,0.2]
[1765050280347,8.34,132.09,132.07,0.2]
[1765050280555,9.06,132.09,132.07,0.2]
[1765050284654,9.06,132.09,132.08,3.33707543]
[1765050290766,8.34,132.09,132.08,3.33707543]
[1765050294541,8.34,132.09,132.08,5.2167987]
[1765050300768,16.5905958,132.09,132.07,0.2]
[1765050300975,0.68,132.08,132.07,0.2]
[1765050301166,121.288864,132.08,132.07,0.2]
[1765050301343,104.98,132.08,132.07,0.2]
[1765050301538,110.1967987,132.08,132.07,0.2]
[1765050301766,104.98,132.08,132.07,0.2]
[1765050302254,112.55116898,132.08,132.07,0.2]
[1765050303352,104.3,132.08,132.07,5.4167987]
[1765050303548,112.64,132.08,132.07,5.4167987]
[1765050305964,112.64,132.08,132.07,6.1367987]
[1765050306276,112.64,132.08,132.07,13.70854095]
[1765050307394,27.72991175,132.14,132.07,13.70854095]
[1765050307395,104.3,132.13,132.07,13.70854095]
[1765050307682,16.308864,132.09,132.08,8.29116898]
[1765050307849,24.648864,132.09,132.08,8.29116898]
[1765050308752,24.648864,132.09,132.08,13.50796768]
[1765050308956,8.34,132.09,132.08,13.50796768]
[1765050311776,120.608864,132.13,132.08,18.72476638]
[1765050311990,8.34,132.12,132.09,5.9367987]
[1765050312359,8.34,132.12,132.1,0.72]
[1765050313284,8.34,132.12,132.11,5.2167987]
[1765050313663,8.34,132.12,132.11,5.9367987]
[1765050314680,8.34,132.12,132.1,12.78668748]
[1765050314888,8.34,132.12,132.1,13.50668748]
[1765050315770,9.02,132.12,132.09,5.2167987]
[1765050315975,16.58915911,132.12,132.09,5.9367987]
[1765050318885,16.58915911,132.12,132.1,5.2167987]
[1765050321789,8.34,132.12,132.1,5.2167987]
[1765050321995,8.34,132.12,132.11,5.9067987]
[1765050322292,8.34,132.12,132.11,5.2167987]
[1765050322487,104.3,132.13,132.11,5.9067987]
[1765050322684,104.3,132.13,132.12,5.2167987]
[1765050322873,112.64,132.13,132.12,5.2167987]
[1765050323491,120.88850234,132.13,132.09,5.2167987]
[1765050323688,0.68,132.12,132.08,7.5707609]
[1765050323898,8.34,132.11,132.08,13.4775596]
[1765050324276,8.34,132.11,132.07,0.2]
[1765050324277,0.68,132.1,132.07,5.4167987]
[1765050324482,8.34,132.09,132.07,5.4167987]
[1765050324676,8.34,132.09,132.07,6.1067987]
[1765050325881,8.34,132.09,132.08,5.2167987]
[1765050329306,41.94,132.09,132.08,13.47796768]
[1765050329683,8.34,132.09,132.08,13.47796768]
[1765050330204,8.34,132.09,132.08,12.78796768]
[1765050330409,8.34,132.09,132.08,13.47796768]
[1765050334808,8.34,132.09,132.08,12.78796768]
[1765050335002,8.34,132.09,132.08,5.2167987]
[1765050336182,8.34,132.09,132.07,8.46158499]
[1765050336183,16.59075237,132.09,132.07,0.2]
[1765050336386,0.68,132.08,132.07,0.2]
[1765050336587,0.68,132.08,132.07,5.4167987]
[1765050339403,1.28,132.08,132.07,5.4167987]
[1765050339600,0.6,132.08,132.07,5.4167987]
[1765050339799,0.6,132.08,132.07,13.67854095]
[1765050339999,8.94,132.08,132.07,13.67854095]
[1765050342621,0.6,132.08,132.07,18.89533965]
[1765050342916,8.34,132.1,132.07,37.82469529]
[1765050343214,8.34,132.1,132.09,10.4335974]
[1765050343413,8.34,132.1,132.09,11.1235974]
[1765050343714,8.34,132.1,132.09,18.6941932]
[1765050344728,8.34,132.1,132.09,5.2167987]
[1765050345289,9.02,132.1,132.07,7.77165663]
[1765050345616,9.02,132.1,132.09,5.2167987]
[1765050346200,8.34,132.1,132.09,5.2167987]
[1765050350604,8.34,132.1,132.09,5.8767987]
[1765050352817,8.34,132.1,132.09,5.2167987]
[1765050354125,8.34,132.1,132.09,5.8767987]
[1765050354621,8.34,132.1,132.09,11.0935974]
[1765050355523,8.34,132.1,132.09,18.6641932]
[1765050356416,8.34,132.1,132.09,24.914927]
[1765050360439,8.34,132.1,132.09,10.90746204]
[1765050360935,8.34,132.1,132.09,11.62746204]
[1765050362519,8.34,132.1,132.09,14.96432828]
[1765050363613,8.34,132.1,132.09,11.62746204]
[1765050366739,8.34,132.1,132.09,10.90746204]
[1765050366929,8.34,132.1,132.09,11.62746204]
[1765050373947,9.01,132.1,132.09,7.5705958]
[1765050374157,9.01,132.1,132.08,7.57094859]
[1765050374361,9.01,132.1,132.08,10.90781483]
[1765050376336,9.01,132.1,132.09,3.33686624]
[1765050378953,9.01,132.1,132.08,7.57094859]
[1765050379139,9.01,132.1,132.09,3.33686624]
[1765050380553,8.34,132.1,132.09,3.33686624]
[1765050383953,8.34,132.1,132.09,11.58746204]
[1765050385354,8.34,132.1,132.09,10.90746204]
[1765050385560,9.01,132.1,132.09,10.90746204]
[1765050385739,25.318864,132.1,132.07,0.2]
[1765050385936,25.318864,132.1,132.07,7.77170576]
[1765050385937,0.67,132.09,132.07,7.77170576]
[1765050386138,0.67,132.09,132.07,0.2]
[1765050386139,8.34,132.08,132.07,0.2]
[1765050386340,8.34,132.08,132.07,11.10860849]
[1765050386646,8.34,132.1,132.07,11.10860849]
[1765050386856,8.34,132.1,132.09,3.33686624]
[1765050387358,8.34,132.1,132.09,4.01686624]
[1765050388156,8.34,132.1,132.09,11.58746204]
[1765050389057,8.34,132.1,132.09,8.2505958]
[1765050389257,8.34,132.1,132.09,11.58746204]
[1765050393761,8.34,132.12,132.09,33.85081779]
[1765050393961,8.34,132.12,132.11,3.33686624]
[1765050394260,16.308864,132.13,132.11,3.33686624]
[1765050394461,8.34,132.12,132.09,29.83395155]
[1765050394859,112.53619393,132.17,132.09,29.83395155]
[1765050395044,8.34,132.16,132.1,0.68]
[1765050395248,24.648864,132.16,132.1,0.68]
[1765050395649,24.648864,132.16,132.15,3.33686624]
[1765050396259,25.318864,132.16,132.15,3.33686624]
[1765050396455,16.308864,132.16,132.15,3.33686624]
[1765050396659,24.648864,132.16,132.15,3.33686624]
[1765050397160,16.308864,132.13,132.1,0.68]
[1765050397344,8.34,132.12,132.1,10.90670012]
[1765050397749,9.01,132.12,132.1,10.90670012]
[1765050398858,9.01,132.12,132.09,11.58727072]
[1765050400275,9.01,132.12,132.1,3.33686624]
[1765050400648,8.34,132.12,132.1,3.33686624]
[1765050400854,8.34,132.12,132.1,4.01686624]
[1765050402257,8.34,132.12,132.11,3.33686624]
[1765050404578,8.34,132.12,132.11,4.01686624]
[1765050404740,8.34,132.12,132.11,3.33686624]
[1765050408166,8.34,132.12,132.09,10.90728833]
[1765050408167,9.01,132.12,132.09,10.90728833]
[1765050408970,9.01,132.12,132.09,11.58728833]
[1765050410969,0.68,132.11,132.08,7.57116898]
[1765050411173,8.34,132.1,132.08,10.90803522]
[1765050414662,8.34,132.1,132.08,11.62803522]
[1765050418482,8.34,132.1,132.08,13.50792955]
[1765050421680,0.71,132.09,132.07,7.77171076]
[1765050422883,0.71,132.09,132.07,0.2]
[1765050425259,16.308864,132.08,132.07,0.2]
[1765050425788,17.018864,132.08,132.07,0.2]
[1765050426488,24.59003298,132.08,132.07,0.2]
[1765050426871,32.85349583,132.08,132.07,0.2]
[1765050431104,17.31346285,132.08,132.07,0.2]
[1765050431310,24.17463183,132.08,132.07,0.2]
[1765050431608,16.62116898,132.08,132.07,0.2]
[1765050434693,21.83792955,132.08,132.07,0.2]
[1765050435096,35.86463504,132.08,132.07,0.2]
[1765050440609,21.12792955,132.08,132.07,0.2]
[1765050443599,12.78792955,132.08,132.07,0.2]
[1765050443799,21.12792955,132.08,132.07,0.2]
[1765050444009,37.43679355,132.08,132.07,0.2]
[1765050446992,27.73592987,132.1,132.07,0.89]
[1765050446993,23.87926576,132.1,132.07,0.89]
[1765050447208,8.34,132.09,132.07,0.89]
[1765050451215,15.91072997,132.09,132.07,0.89]
[1765050451417,0.71,132.08,132.07,0.2]
[1765050451724,14.73670549,132.08,132.07,0.2]
[1765050451909,119.03670549,132.08,132.07,0.2]
[1765050452114,113.81994492,132.08,132.07,0.2]
[1765050452421,119.72670549,132.08,132.07,0.2]
[1765050453091,132.51463504,132.08,132.07,0.2]
[1765050454522,8.34,132.08,132.07,0.89]
[1765050460598,8.34,132.08,132.07,0.2]
[1765050463614,9.05,132.08,132.07,0.2]
[1765050463806,21.83792955,132.08,132.07,0.2]
[1765050466016,16.62116898,132.08,132.07,0.2]
[1765050474213,32.93003298,132.08,132.07,0.2]
[1765050474628,35.96251848,132.08,132.07,0.2]
[1765050475211,32.93003298,132.08,132.07,0.2]
[1765050477537,38.14679355,132.08,132.07,0.2]
[1765050478546,36.27138995,132.08,132.07,0.2]
[1765050481021,31.80541623,132.08,132.07,0.2]
[1765050483236,29.53203681,132.08,132.05,0.86]
[1765050483444,37.87203681,132.08,132.05,0.86]
[1765050483740,16.308864,132.06,132.05,0.86]
[1765050485254,24.648864,132.06,132.05,0.86]
[1765050488431,104.3,132.07,132.05,4.20135697]
[1765050488630,104.3,132.07,132.06,4.00135697]
[1765050488833,112.64,132.07,132.06,4.00135697]
[1765050493252,112.64,132.07,132.06,11.57367258]
[1765050493462,8.34,132.07,132.06,11.57367258]
[1765050495052,8.34,132.07,132.06,4.00135697]
[1765050495655,7.57066297,132.09,132.06,4.00135697]
[1765050495852,8.34,132.07,132.05,7.77274345]
[1765050496333,8.34,132.07,132.06,8.23231561]
[1765050496946,8.34,132.07,132.06,11.57367258]
[1765050497547,8.34,132.07,132.06,4.00135697]
[1765050505364,8.34,132.07,132.06,11.57367258]
[1765050508365,104.3,132.11,132.06,30.50446161]
[1765050508664,8.34,132.1,132.09,3.34135697]
[1765050509072,8.34,132.1,132.09,4.04135697]
[1765050512268,8.34,132.1,132.09,0.7]
[1765050515664,9.02,132.1,132.06,0.7]
[1765050515867,0.68,132.09,132.06,0.7]
[1765050516377,20.33022097,132.09,132.05,0.2]
[1765050516750,16.308864,132.06,132.05,0.2]
[1765050516965,24.648864,132.06,132.05,0.9]
[1765050522255,8.34,132.06,132.05,11.81424602]
[1765050523759,24.648864,132.07,132.05,11.81424602]
[1765050523965,24.648864,132.07,132.06,4.04135697]
[1765050524563,41.148864,132.07,132.06,4.04135697]
[1765050525094,24.84,132.07,132.06,11.61367258]
[1765050527462,8.34,132.07,132.06,11.61367258]
[1765050529593,24.84,132.07,132.06,11.61367258]
[1765050530095,8.34,132.07,132.06,11.61367258]
[1765050539399,16.308864,132.09,132.06,11.61367258]
[1765050539589,24.648864,132.09,132.08,3.34135697]
[1765050540284,8.34,132.09,132.08,4.02135697]
[1765050540597,8.34,132.09,132.08,5.89590759]
[1765050541479,8.34,132.09,132.08,0.68]
[1765050541678,9.05,132.09,132.07,12.78764635]
[1765050542398,0.71,132.08,132.05,6.09590759]
[1765050542603,8.34,132.07,132.05,0.88]
[1765050542814,8.34,132.07,132.05,0.2]
[1765050542982,9.05,132.07,132.05,0.2]
[1765050543185,0.71,132.06,132.05,0.2]
[1765050544102,16.62182454,132.07,132.05,0.2]
[1765050544810,8.34,132.07,132.06,5.21590759]
[1765050545189,8.34,132.07,132.06,5.89590759]
[1765050548601,8.34,132.07,132.06,13.4682232]
[1765050552894,8.34,132.09,132.06,13.4682232]
[1765050553093,8.34,132.09,132.08,5.21590759]
[1765050553593,8.34,132.09,132.08,5.89590759]
[1765050554512,8.34,132.09,132.08,13.46707657]
[1765050582125,43.50756848,132.14,132.08,32.39499904]
[1765050582329,9.04,132.13,132.12,5.21590759]
[1765050582522,8.34,132.13,132.12,5.86590759]
[1765050582834,8.34,132.13,132.12,5.21590759]
[1765050583512,8.34,132.13,132.12,5.86590759]
[1765050584220,8.34,132.13,132.12,13.43478436]
[1765050584814,104.3,132.16,132.12,13.43478436]
[1765050585018,104.3,132.16,132.15,5.21590759]
[1765050585337,112.64,132.16,132.15,5.21590759]
[1765050585945,112.64,132.16,132.15,5.86590759]
[1765050586722,112.64,132.16,132.15,5.21590759]
[1765050587041,8.34,132.16,132.15,5.21590759]
[1765050587340,8.34,132.16,132.15,5.86590759]
[1765050589140,8.34,132.16,132.15,5.21590759]
[1765050593950,8.34,132.16,132.15,5.92590759]
[1765050594844,8.34,132.16,132.15,5.21590759]
[1765050595034,8.34,132.16,132.15,5.92590759]
[1765050596741,8.34,132.16,132.15,5.21590759]
[1765050597429,8.34,132.16,132.14,0.71]
[1765050597648,8.34,132.16,132.15,5.21590759]
[1765050600140,8.32,132.16,132.15,5.21590759]
[1765050600335,9.04,132.16,132.13,5.21590759]
[1765050600542,0.72,132.15,132.13,5.21590759]
[1765050600839,8.32,132.14,132.13,5.21590759]
[1765050601552,9.04,132.14,132.11,7.56927226]
[1765050601853,0.72,132.13,132.12,5.21590759]
[1765050602151,0.72,132.13,132.11,5.21590759]
[1765050602335,8.32,132.12,132.11,3.33724484]
[1765050602848,9.04,132.12,132.1,3.33724484]
[1765050604349,0.72,132.11,132.1,3.33724484]
[1765050604561,17.028864,132.11,132.08,3.33724484]